fUSD/lending_fUSD_20240803
["ID","MTS","AMOUNT","RATE_DAILY","PERIOD"]
[333943088,1722643476091,-192.14261377,0.00010859,2]
[333943089,1722643532298,-257.984,0.00010859,2]
[333943090,1722643681689,-861.5,0.00010248,2]
[333943091,1722643753469,-1730.12594621,0.00010248,2]
[333943108,1722643831654,-192.14261377,0.00010148,2]
[333943109,1722643831664,-279.89738623,0.00010248,2]
[333943110,1722643831689,-544.57707993,0.00010248,2]
[333943111,1722643831700,-418.54007673,0.00010248,2]
[333943112,1722643831712,-95.21447165,0.00010248,2]
[333943113,1722643831722,-227.58642964,0.00010248,2]
[333943114,1722643831731,-515.02718376,0.00010248,2]
[333943115,1722643831742,-811.05669613,0.00010248,2]
[333943116,1722643831753,-306.79963681,0.00010248,2]
[333943117,1722643831763,-627.53649382,0.00010248,2]
[333943118,1722643831774,-79.99351013,0.00010248,2]
[333943119,1722643831783,-1222.70109988,0.00010248,2]
[333943120,1722643831793,-795.56450004,0.00010248,2]
[333943121,1722643831802,-150.0,0.00010248,2]
[333943122,1722643831811,-150.0,0.00010248,2]
[333943123,1722643831820,-150.0,0.00010248,2]
[333943124,1722643831830,-150.0,0.00010248,2]
[333943125,1722643831839,-227.23086413,0.00010248,2]
[333943126,1722643831849,-783.76,0.00010959,2]
[333943128,1722643831859,-250.0,0.00011,2]
[333943130,1722643831869,-150.0,0.00011085,2]
[333943132,1722643831880,-259.6348,0.00011086,2]
[333943134,1722643831890,-3780.621,0.00011086,2]
[333943135,1722643831900,-3151.9873,0.00011086,2]
[333943137,1722643831909,-213.0658,0.00011086,2]
[333943138,1722643831919,-1441.67573576,0.00011176,2]
[333943139,1722643831931,-700.0,0.00011176,2]
[333943140,1722643831943,-5846.40087737,0.00011176,2]
[333943141,1722643831953,-594.83,0.00011176,2]
[333943142,1722643831962,-594.83,0.00011176,2]
[333943143,1722643831972,-77028.62994259,0.00011186,2]
[333943144,1722643831982,-22637.45575811,0.00011186,2]
[333943145,1722643831992,-1201.76,0.00011186,2]
[333943146,1722643832001,-1313.08,0.00011186,2]
[333943147,1722643832012,-460.3253,0.00011428,2]
[333943148,1722643832022,-207.8,0.00011428,2]
[333943149,1722643832032,-599.07,0.00011428,2]
[333943150,1722643832041,-1175.68290634,0.00011896,2]
[333943151,1722643832051,-1274.36385477,0.00011896,2]
[333943152,1722643832061,-150.99,0.00011959,2]
[333943153,1722643832071,-324.12,0.00011959,2]
[333943154,1722643832080,-499.99,0.0001199,2]
[333943155,1722643832090,-5100.0,0.00012,2]
[333943156,1722643832099,-550.0,0.00012,2]
[333943157,1722643832110,-212.814,0.00012055,2]
[333943158,1722643832120,-200.0,0.0001207,2]
[333943159,1722643832131,-250.0,0.00012078,2]
[333943160,1722643832141,-2575.21,0.00012087,2]
[333943161,1722643832151,-264.43,0.00012112,2]
[333943162,1722643832161,-255.0,0.00012138,2]
[333943163,1722643832171,-250.0,0.00012147,2]
[333943164,1722643832181,-200.0,0.00012148,2]
[333943165,1722643832192,-1678.55,0.00012163,2]
[333943166,1722643832201,-500.0,0.00012201,2]
[333943167,1722643832212,-4296.03,0.00012206,2]
[333943168,1722643832221,-1900.97,0.00012309,2]
[333943169,1722643832231,-1073.58046777,0.0001236,2]
[333943170,1722643832241,-298.34472477,0.0001236,2]
[333943171,1722643832251,-531.75837037,0.0001236,2]
[333943172,1722643832261,-171.29,0.00012381,2]
[333943173,1722643832271,-150.0,0.00012393,2]
[333943174,1722643832281,-414.42088347,0.00012422,2]
[333943175,1722643832291,-240.72404338,0.00012422,2]
[333943176,1722643832300,-1007.66003921,0.00012439,2]
[333943177,1722643832310,-218.70120193,0.0001246,2]
[333943178,1722643832320,-476.4573429,0.0001246,2]
[333943179,1722643832330,-155.0,0.0001246,2]
[333943180,1722643832340,-155.0,0.0001246,2]
[333943181,1722643832350,-155.07285233,0.0001246,2]
[333943182,1722643832360,-297.19942446,0.0001246,2]
[333943183,1722643832369,-155.0,0.0001246,2]
[333943184,1722643832381,-23900.0,0.00012502,2]
[333943185,1722643832391,-861.5,0.00012512,2]
[333943186,1722643832401,-210.84776497,0.0001254,2]
[333943187,1722643832410,-155.2180906,0.0001254,2]
[333943188,1722643832420,-196.93669502,0.0001254,2]
[333943189,1722643832430,-155.0,0.0001254,2]
[333943190,1722643832439,-155.0,0.0001254,2]
[333943191,1722643832450,-248.27331307,0.0001254,2]
[333943192,1722643832464,-357.10853561,0.0001254,2]
[333943193,1722643832473,-155.0,0.0001254,2]
[333943194,1722643832482,-155.120938,0.0001254,2]
[333943195,1722643832492,-155.06185599,0.0001254,2]
[333943196,1722643832502,-243.00643023,0.0001254,2]
[333943197,1722643832512,-274.62264637,0.0001254,2]
[333943198,1722643832522,-155.0,0.0001254,2]
[333943199,1722643832531,-155.0,0.0001254,2]
[333943200,1722643832542,-155.04833987,0.0001254,2]
[333943201,1722643832551,-155.0,0.0001254,2]
[333943202,1722643832561,-202.68830391,0.0001254,2]
[333943203,1722643832570,-155.0,0.0001254,2]
[333943204,1722643832580,-379.95855132,0.0001254,2]
[333943205,1722643832591,-263.66394453,0.00012581,2]
[333943206,1722643832601,-228.87598669,0.00012581,2]
[333943207,1722643832611,-484.69898026,0.00012581,2]
[333943208,1722643832622,-190.37826758,0.00012581,2]
[333943209,1722643832634,-205.72998009,0.00012581,2]
[333943210,1722643832644,-155.0,0.00012581,2]
[333943211,1722643832654,-686.34001009,0.00012581,2]
[333943212,1722643832664,-440.01962612,0.00012581,2]
[333943213,1722643832673,-164.21268611,0.00012581,2]
[333943214,1722643832683,-188.60979296,0.00012581,2]
[333943215,1722643832693,-346.59,0.00012603,2]
[333943216,1722643832703,-155.05460087,0.00012613,2]
[333943217,1722643832713,-359.03203292,0.00012613,2]
[333943218,1722643832723,-210.81100741,0.00012613,2]
[333943219,1722643832735,-200.08,0.00012621,2]
[333943220,1722643832745,-155.0,0.00012665,2]
[333943221,1722643832755,-155.0,0.00012665,2]
[333943222,1722643832765,-363.80421493,0.00012665,2]
[333943223,1722643832774,-2640.11,0.00012893,2]
[333943224,1722643832784,-888.0632118,0.00012924,2]
[333943225,1722643832794,-947.76827511,0.00013,2]
[333943226,1722643832804,-1007.66003921,0.00013055,2]
[333943227,1722643832814,-155.03107354,0.00013066,2]
[333943228,1722643832824,-2500.0,0.00013084,2]
[333943229,1722643832834,-245.958,0.00013099,2]
[333943230,1722643832844,-628.0054999,0.00013133,2]
[333943231,1722643832853,-5316.1742,0.00013184,2]
[333943232,1722643832863,-2000.0,0.00013184,2]
[333943233,1722643832873,-3014.9869,0.00013184,2]
[333943234,1722643832890,-13163.11,0.00013284,2]
[333943235,1722643832899,-800.0,0.00013288,2]
[333943236,1722643832909,-243.31,0.00013366,2]
[333943237,1722643832919,-258.08,0.0001337,30]
[333943238,1722643832929,-2838.6219248,0.00013378,2]
[333943239,1722643832938,-473.66,0.00013489,2]
[333943240,1722643832949,-1000.0,0.00013556,2]
[333943241,1722643832959,-461.88,0.00013564,2]
[333943242,1722643832968,-461.88,0.00013568,2]
[333943243,1722643832978,-171.67,0.0001357,2]
[333943244,1722643832988,-461.88,0.00013571,2]
[333943245,1722643832998,-461.88,0.00013575,2]
[333943246,1722643833008,-200.0,0.00013578,2]
[333943247,1722643833019,-461.88,0.00013578,2]
[333943248,1722643833029,-461.88,0.00013582,2]
[333943249,1722643833039,-461.88,0.00013586,2]
[333943250,1722643833050,-461.88,0.00013589,2]
[333943251,1722643833060,-461.88,0.00013593,2]
[333943252,1722643833070,-461.88,0.00013596,2]
[333943253,1722643833080,-461.88,0.000136,2]
[333943254,1722643833090,-461.88,0.00013603,2]
[333943255,1722643833100,-461.88,0.00013607,2]
[333943256,1722643833110,-461.88,0.00013611,2]
[333943257,1722643833120,-461.88,0.00013614,2]
[333943258,1722643833133,-461.88,0.00013618,2]
[333943259,1722643833143,-461.88,0.00013621,2]
[333943260,1722643833153,-461.88,0.00013625,2]
[333943261,1722643833163,-461.88,0.00013628,2]
[333943262,1722643833173,-461.88,0.00013632,2]
[333943263,1722643833183,-199.92,0.00013667,2]
[333943264,1722643833194,-1007.66003921,0.00013671,2]
[333943265,1722643833204,-2751.0,0.00013699,2]
[333943266,1722643833214,-200.0,0.00013699,2]
[333943267,1722643833224,-10000.0,0.0001379,2]
[333943268,1722643833235,-1670.0,0.00013866,2]
[333943269,1722643833245,-5126.0,0.00013866,2]
[333943270,1722643833256,-1203.0,0.00013866,2]
[333943271,1722643833268,-5834.0,0.00013866,2]
[333943272,1722643833279,-162.0,0.00013866,2]
[333943273,1722643833289,-21732.0,0.00013866,2]
[333943274,1722643833298,-162.03527453,0.00013873,2]
[333943275,1722643833308,-12810.53942274,0.00013889,2]
[333943276,1722643833318,-174.31,0.00013973,2]
[333943277,1722643833328,-7229.36914245,0.0001399,2]
[333943278,1722643833338,-600.0,0.00014,2]
[333943279,1722643833348,-18608.10401014,0.00014,2]
[333943280,1722643833358,-200.08,0.00014199,2]
[333943281,1722643833368,-1007.66003921,0.00014287,2]
[333943282,1722643833378,-306.60284181,0.00014351,2]
[333943283,1722643833391,-4410.7835,0.00014409,2]
[333943284,1722643833401,-14458.7382849,0.00014441,2]
[333943285,1722643833410,-4734.51941058,0.00014451,2]
[333943286,1722643833422,-604.0,0.00014451,2]
[333943287,1722643833432,-431.0,0.00014451,2]
[333943288,1722643833442,-550.0,0.00014451,2]
[333943289,1722643833455,-1370.0,0.00014451,2]
[333943290,1722643833466,-2701.206,0.00014451,2]
[333943291,1722643833476,-155.0,0.00014519,2]
[333943292,1722643833486,-150.0,0.0001477,2]
[333943293,1722643833496,-861.5,0.00014776,2]
[333943294,1722643833506,-182.242164,0.00014795,2]
[333943295,1722643833516,-306.60284178,0.00014848,2]
[333943296,1722643833527,-1007.66003921,0.00014903,2]
[333943297,1722643833538,-800.0,0.00014949,2]
[333943298,1722643833548,-7229.36914245,0.0001499,2]
[333943299,1722643833558,-4150.0,0.00015,2]
[333943300,1722643833567,-1147.51503613,0.00015,7]
[333943301,1722643833577,-787.0,0.00015,2]
[333943302,1722643833970,-150.0,0.00015,15]
[333943303,1722643834009,-200.0,0.00015087,2]
[333943304,1722643834019,-500.0,0.00015256,2]
[333943305,1722643834029,-306.60284178,0.00015345,2]
[333943306,1722643834039,-199.92,0.00015376,2]
[333943307,1722643834049,-800.0,0.000155,5]
[333943308,1722643834059,-1007.66003921,0.00015518,2]
[333943309,1722643834069,-1700.0,0.000156,5]
[333943310,1722643834079,-182.242164,0.00015616,2]
[333943311,1722643834089,-2600.0,0.000157,5]
[333943312,1722643834098,-200.08,0.00015776,2]
[333943313,1722643834108,-7229.36914245,0.0001579,2]
[333943314,1722643834119,-162.03527452,0.00015791,2]
[333943315,1722643834129,-3400.0,0.000158,5]
[333943316,1722643834148,-167.0,0.00015831,2]
[333943317,1722643834158,-306.60284178,0.00015841,2]
[333943318,1722643834168,-4300.0,0.000159,5]
[333943319,1722643834178,-233.34379876,0.00015994,5]
[333943320,1722643834188,-650.0,0.00016,2]
[333943321,1722643834198,-150.0,0.00016,2]
[333943322,1722643834208,-2257.6792224,0.00016,2]
[333943323,1722643834218,-319.30965259,0.0001602,2]
[333943324,1722643834229,-530.53203882,0.00016033,2]
[333943325,1722643834239,-7229.36914245,0.00016124,2]
[333943326,1722643834249,-1007.66003921,0.00016134,2]
[333943327,1722643834259,-1217.0,0.00016138,2]
[333943328,1722643834270,-157.080308,0.00016138,3]
[333943329,1722643834280,-157.080308,0.00016138,3]
[333943330,1722643834290,-157.080308,0.00016138,3]
[333943331,1722643834300,-157.080308,0.00016138,4]
[333943332,1722643834310,-157.080308,0.00016138,4]
[333943333,1722643834319,-157.080308,0.00016138,4]
[333943334,1722643834329,-157.080308,0.00016138,2]
[333943335,1722643834339,-157.080308,0.00016138,2]
[333943336,1722643834348,-157.080308,0.00016138,2]
[333943337,1722643834358,-157.080308,0.00016138,2]
[333943338,1722643834368,-157.080308,0.00016148,2]
[333943339,1722643834378,-157.080308,0.00016148,2]
[333943340,1722643834395,-157.080308,0.00016148,2]
[333943341,1722643834405,-157.080308,0.00016148,2]
[333943342,1722643834415,-157.080308,0.00016148,2]
[333943343,1722643834426,-157.080308,0.00016148,4]
[333943344,1722643834436,-157.080308,0.00016148,4]
[333943345,1722643834447,-157.080308,0.00016148,3]
[333943346,1722643834459,-157.080308,0.00016148,3]
[333943347,1722643834471,-157.080308,0.00016148,3]
[333943348,1722643834482,-157.080308,0.00016148,3]
[333943349,1722643834493,-526.1093926,0.00016159,2]
[333943350,1722643834505,-7500.0,0.00016166,2]
[333943351,1722643834516,-300.0,0.00016178,2]
[333943352,1722643834526,-1500.0,0.00016178,2]
[333943353,1722643834538,-1500.0,0.00016188,2]
[333943354,1722643834551,-1500.0,0.00016202,2]
[333943355,1722643834561,-300.0,0.00016205,2]
[333943356,1722643834572,-1500.0,0.00016206,2]
[333943357,1722643834582,-300.0,0.00016211,2]
[333943358,1722643834592,-150.0,0.00016219,2]
[333943359,1722643834603,-57834.9531396,0.00016228,2]
[333943360,1722643834612,-155.71,0.00016228,2]
[333943361,1722643834622,-7229.36914245,0.00016228,2]
[333943362,1722643834637,-100000.0,0.00016238,2]
[333943363,1722643834648,-11313.05498942,0.00016238,2]
[333943364,1722643834658,-1500.0,0.00016243,2]
[333943365,1722643834667,-157.080308,0.00016248,3]
[333943366,1722643834677,-157.080308,0.00016248,3]
[333943367,1722643834687,-157.080308,0.00016248,3]
[333943368,1722643834697,-157.080308,0.00016248,4]
[333943369,1722643834708,-157.080308,0.00016248,4]
[333943370,1722643834718,-157.080308,0.00016248,4]
[333943371,1722643834728,-157.080308,0.00016248,2]
[333943372,1722643834738,-157.080308,0.00016248,2]
[333943373,1722643834749,-157.080308,0.00016248,2]
[333943374,1722643834759,-157.080308,0.00016248,2]
[333943375,1722643834769,-21688.1074274,0.00016256,2]
[333943376,1722643834779,-1500.0,0.00016257,2]
[333943377,1722643834788,-2667.35496,0.0001626,2]
[333943378,1722643834798,-39013.0,0.00016266,2]
[333943379,1722643834808,-150.0,0.00016287,2]
[333943380,1722643834817,-1500.0,0.00016289,2]
[333943381,1722643834827,-150.0,0.0001629,2]
[333943382,1722643834837,-1500.0,0.00016294,2]
[333943383,1722643834847,-7229.36914245,0.00016294,2]
[333943384,1722643834857,-1500.0,0.00016304,2]
[333943385,1722643834867,-1631.07969154,0.00016304,2]
[333943386,1722643834876,-1500.0,0.00016307,2]
[333943387,1722643834889,-150.0,0.00016317,2]
[333943388,1722643834899,-50605.5839972,0.00016317,2]
[333943389,1722643834909,-50605.5839972,0.00016328,2]
[333943390,1722643834919,-152.0709361,0.00016328,2]
[333943391,1722643834929,-1500.0,0.0001633,2]
[333943392,1722643834939,-1500.0,0.00016331,2]
[333943393,1722643834948,-124929.16820042,0.00016338,2]
[333943394,1722643835670,-493.5770007,0.00016338,2]
[333943395,1722643835683,-264.82796935,0.00016338,2]
[333943396,1722643835772,-594.83,0.00011176,2]
[333943397,1722643835782,-85366.38852953,0.00016338,2]
[333943398,1722643835791,-500.0,0.00016338,2]
[333943399,1722643835801,-222.18804582,0.00016338,2]
[333943400,1722643835810,-157.080308,0.00016338,4]
[333943401,1722643835819,-157.080308,0.00016338,4]
[333943402,1722643835829,-157.080308,0.00016338,4]
[333943403,1722643835838,-157.080308,0.00016338,3]
[333943404,1722643835848,-157.080308,0.00016338,3]
[333943405,1722643835858,-157.080308,0.00016338,3]
[333943406,1722643835867,-157.080308,0.00016338,2]
[333943407,1722643835877,-157.080308,0.00016338,2]
[333943408,1722643835888,-157.080308,0.00016338,2]
[333943409,1722643835898,-177.73863604,0.00016338,2]
[333943410,1722643835907,-176.96034438,0.00016338,2]
[333943411,1722643835917,-5478.59369159,0.00016338,2]
[333943412,1722643835926,-293.32787522,0.00016338,2]
[333943413,1722643835935,-306.60284178,0.00016338,2]
[333943414,1722643835944,-1000.0,0.00016338,2]
[333943415,1722643835955,-10000.0,0.00016338,2]
[333943416,1722643835964,-150.0,0.00016346,2]
[333943417,1722643835974,-300.0,0.00016348,2]
[333943418,1722643835983,-1500.0,0.00016348,2]
[333943419,1722643835993,-300.0,0.00016353,2]
[333943420,1722643836002,-300.0,0.00016354,2]
[333943421,1722643836012,-839.22,0.00016354,2]
[333943422,1722643836022,-247.88340489,0.00016358,2]
[333943423,1722643836031,-1500.0,0.00016366,2]
[333943424,1722643836042,-1085.30157508,0.00016375,2]
[333943425,1722643836052,-189.40050836,0.00016388,2]
[333943426,1722643836061,-300.0,0.00016395,2]
[333943427,1722643836071,-494.0,0.000164,2]
[333943428,1722643836081,-1500.0,0.000164,2]
[333943429,1722643836090,-157.080308,0.00016418,3]
[333943430,1722643836100,-157.080308,0.00016418,3]
[333943431,1722643836109,-157.080308,0.00016418,3]
[333943432,1722643836119,-157.080308,0.00016418,3]
[333943433,1722643836129,-157.080308,0.00016418,3]
[333943434,1722643836145,-157.080308,0.00016418,3]
[333943435,1722643836154,-157.080308,0.00016418,4]
[333943436,1722643836164,-157.080308,0.00016418,4]
[333943437,1722643836280,-150.0,0.00016418,2]
[333943438,1722643836290,-150.0,0.00016425,2]
[333943439,1722643836300,-953.33498772,0.00016425,2]
[333943440,1722643836309,-671.65915653,0.00016425,2]
[333943441,1722643836319,-4409.92832178,0.00016427,2]
[333943442,1722643836328,-155.71,0.00016428,2]
[333943443,1722643836338,-300.0,0.00016429,2]
[333943444,1722643836347,-1500.0,0.0001643,2]
[333943445,1722643836358,-300.0,0.00016436,2]
[333943446,1722643836367,-150.0,0.00016437,2]
[333943447,1722643836376,-468548.15427772,0.00016438,7]
[333943448,1722643836391,-2487.75072254,0.00016438,7]
[333943449,1722643836432,-334.17,0.00016438,7]
[333943450,1722643836456,-5623.53161337,0.00016438,7]
[333943451,1722643836471,-1941.12504729,0.00016438,7]
[333943452,1722643836483,-250.0,0.00016438,7]
[333943453,1722643836495,-3332.62267,0.00016438,7]
[333943454,1722643836506,-438292.89349608,0.00016438,7]
[333943455,1722643836522,-2130.98518183,0.00016438,7]
[333943456,1722643836534,-929.99995,0.00016438,7]
[333943457,1722643836546,-1203.63841064,0.00016438,7]
[333943458,1722643836557,-2514.72665498,0.00016438,7]
[333943459,1722643836568,-22416.49869489,0.00016438,7]
[333943589,1722643839809,-594.83,0.00011176,2]
[333943590,1722643839819,-28.61199861,0.00011176,2]
[333943593,1722643839834,-566.21800139,0.00011176,2]
[333943595,1722643839844,-594.83,0.00011176,2]
[333943597,1722643839853,-594.83,0.00011176,2]
[333943599,1722643839863,-594.83,0.00011176,2]
[333943601,1722643839872,-594.83,0.00011176,2]
[333943603,1722643839882,-450.50484559,0.00011176,2]
[333943605,1722643839895,-144.32515441,0.00011176,2]
[333943607,1722643839904,-594.83,0.00011176,2]
[333943609,1722643839914,-594.83,0.00011176,2]
[333943611,1722643839923,-594.83,0.00011176,2]
[333943612,1722643839932,-594.83,0.00011176,2]
[333943615,1722643839942,-594.83,0.00011176,2]
[333943617,1722643839953,-594.83,0.00011886,2]
[333943619,1722643839962,-594.83,0.0001199,2]
[333943621,1722643839971,-594.83,0.00012077,2]
[333943623,1722643839981,-594.83,0.00012196,2]
[333943624,1722643839991,-594.83,0.00012299,2]
[333943626,1722643840000,-203.20879356,0.0001246,2]
[333943628,1722643840009,-594.83,0.00012492,2]
[333943630,1722643840019,-594.83,0.00012492,2]
[333943632,1722643840028,-594.83,0.00012492,2]
[333943634,1722643840038,-594.83,0.00012492,2]
[333943636,1722643840047,-594.83,0.00012492,2]
[333943638,1722643840057,-594.83,0.00012529,2]
[333943640,1722643840067,-594.83,0.00012571,2]
[333943642,1722643840076,-165.34169392,0.00012613,2]
[333943644,1722643840086,-155.0,0.00012613,2]
[333943646,1722643840096,-2000.0,0.00015302,2]
[333943648,1722643840105,-1017.19850797,0.00016109,2]
[333943650,1722643840115,-2756.36521699,0.00016438,7]
[333943652,1722643840126,-98114.74557157,0.00016438,7]
[333943654,1722643840141,-214937.30802911,0.00016438,7]
[333943656,1722643840151,-500.0,0.00016438,2]
[333943658,1722643840161,-500.0,0.00016438,2]
[333943660,1722643840170,-620.84,0.00016438,2]
[333943662,1722643840180,-334.78893158,0.00016438,2]
[333943664,1722643840190,-500.0,0.00016438,2]
[333943666,1722643840200,-500.0,0.00016438,2]
[333943668,1722643840212,-500.0,0.00016438,2]
[333943670,1722643840222,-500.0,0.00016438,2]
[333943672,1722643840231,-751.14,0.00016438,2]
[333943674,1722643840241,-500.0,0.00016438,2]
[333943676,1722643840250,-500.0,0.00016438,2]
[333943678,1722643840260,-627.1,0.00016438,2]
[333943680,1722643840271,-1480.42,0.00016438,2]
[333943682,1722643840281,-500.0,0.00016438,2]
[333943684,1722643840290,-500.0,0.00016438,2]
[333943686,1722643840300,-619.69,0.00016438,2]
[333943688,1722643840309,-500.0,0.00016438,2]
[333943690,1722643840318,-500.0,0.00016438,2]
[333943692,1722643840327,-500.0,0.00016438,2]
[333943694,1722643840336,-500.0,0.00016438,2]
[333943696,1722643840345,-500.0,0.00016438,2]
[333943698,1722643840355,-500.0,0.00016438,2]
[333943700,1722643840364,-500.0,0.00016438,2]
[333943701,1722643840373,-500.0,0.00016438,2]
[333943704,1722643840384,-500.0,0.00016438,2]
[333943706,1722643840395,-500.0,0.00016438,2]
[333943708,1722643840405,-536.14,0.00016438,2]
[333943710,1722643840414,-787.08,0.00016438,2]
[333943712,1722643840424,-271.11101738,0.00016438,2]
[333943714,1722643840433,-204.6287598,0.00016438,2]
[333943716,1722643840442,-500.0,0.00016438,2]
[333943718,1722643840451,-500.0,0.00016438,2]
[333943719,1722643840462,-500.0,0.00016438,2]
[333943721,1722643840475,-500.0,0.00016438,2]
[333943723,1722643840485,-500.0,0.00016438,2]
[333943725,1722643840495,-1158.7,0.00016438,2]
[333943727,1722643840504,-500.0,0.00016438,2]
[333943729,1722643840515,-500.0,0.00016438,2]
[333943731,1722643840525,-572.82,0.00016438,2]
[333943733,1722643840535,-500.0,0.00016438,2]
[333943735,1722643840546,-500.0,0.00016438,2]
[333943737,1722643840555,-500.0,0.00016438,2]
[333943739,1722643840565,-500.0,0.00016438,2]
[333943741,1722643840575,-1097.0,0.00016438,2]
[333943743,1722643840584,-1761.87,0.00016438,2]
[333943744,1722643840593,-500.0,0.00016438,2]
[333943746,1722643840602,-300.0,0.00016438,2]
[333943748,1722643840612,-500.0,0.00016438,2]
[333943750,1722643840621,-806.48,0.00016438,2]
[333943752,1722643840630,-566.25666807,0.00016438,2]
[333943754,1722643840640,-500.0,0.00016438,2]
[333943756,1722643840650,-500.0,0.00016438,2]
[333943758,1722643840659,-500.0,0.00016438,2]
[333943760,1722643840668,-1397.58,0.00016438,2]
[333943762,1722643840678,-770.63,0.00016438,2]
[333943764,1722643840687,-500.0,0.00016438,2]
[333943766,1722643840697,-1338.65,0.00016438,2]
[333943768,1722643840706,-500.0,0.00016438,2]
[333943770,1722643840716,-500.0,0.00016438,2]
[333943772,1722643840725,-500.0,0.00016438,2]
[333943774,1722643840735,-833.32,0.00016438,2]
[333943776,1722643840743,-500.0,0.00016438,2]
[333943778,1722643840753,-609.47639393,0.00016438,2]
[333943780,1722643840762,-1481.01,0.00016438,2]
[333943782,1722643840771,-595.47,0.00016438,2]
[333943783,1722643840782,-500.0,0.00016438,2]
[333943785,1722643840791,-158.70916783,0.00016438,2]
[333943787,1722643840802,-500.0,0.00016438,2]
[333943789,1722643840811,-500.0,0.00016438,2]
[333943791,1722643840820,-500.0,0.00016438,2]
[333943793,1722643840830,-500.0,0.00016438,2]
[333943794,1722643840839,-500.0,0.00016438,2]
[333943796,1722643840848,-500.0,0.00016438,2]
[333943798,1722643840858,-192.68943336,0.00016438,2]
[333943800,1722643840867,-500.0,0.00016438,2]
[333943802,1722643840876,-500.0,0.00016438,2]
[333943804,1722643840885,-209.52,0.00016438,2]
[333943806,1722643840899,-500.0,0.00016438,2]
[333943808,1722643840908,-837.81,0.00016438,2]
[333943810,1722643840917,-1199.56,0.00016438,2]
[333943812,1722643840925,-500.0,0.00016438,2]
[333943814,1722643840935,-500.0,0.00016438,2]
[333943816,1722643840944,-500.0,0.00016438,2]
[333943818,1722643840953,-635.96988438,0.00016438,2]
[333943820,1722643840962,-500.0,0.00016438,2]
[333943822,1722643840971,-500.0,0.00016438,2]
[333943824,1722643840980,-1796.44,0.00016438,2]
[333943826,1722643840989,-500.0,0.00016438,2]
[333943828,1722643840998,-500.0,0.00016438,2]
[333943829,1722643841008,-1117.11,0.00016438,2]
[333943831,1722643841017,-500.0,0.00016438,2]
[333943833,1722643841026,-647.98,0.00016438,2]
[333943835,1722643841036,-552.83,0.00016438,2]
[333943837,1722643841045,-318.47143896,0.00016438,2]
[333943840,1722643841066,-656.49856104,0.00016438,2]
[333943842,1722643841075,-551.19,0.00016438,2]
[333943843,1722643841085,-500.0,0.00016438,2]
[333943844,1722643841094,-500.0,0.00016438,2]
[333943845,1722643841104,-500.0,0.00016438,2]
[333943846,1722643841114,-500.0,0.00016438,2]
[333943847,1722643841124,-500.0,0.00016438,2]
[333943848,1722643841133,-500.0,0.00016438,2]
[333943849,1722643841146,-500.0,0.00016438,2]
[333943850,1722643841155,-500.0,0.00016438,2]
[333943851,1722643841164,-500.0,0.00016438,2]
[333943868,1722643841300,-500.0,0.00016438,2]
[333943874,1722643841383,-1170.73,0.00016438,2]
[333943876,1722643841395,-500.0,0.00016438,2]
[333943878,1722643841405,-500.0,0.00016438,2]
[333943880,1722643841415,-500.0,0.00016438,2]
[333943882,1722643841425,-500.0,0.00016438,2]
[333943884,1722643841435,-500.0,0.00016438,2]
[333943886,1722643841446,-500.0,0.00016438,2]
[333943888,1722643841459,-500.0,0.00016438,2]
[333943890,1722643841470,-500.0,0.00016438,2]